fUST/lending_fUST_20250908
["ID","MTS","AMOUNT","RATE_DAILY","PERIOD"]
[384310656,1757332245203,-480.0,0.00013972,2]
[384310658,1757332245213,-480.0,0.00013972,2]
[384310660,1757332245222,-480.0,0.00013972,2]
[384310662,1757332245232,-480.0,0.00013972,2]
[384310664,1757332245243,-480.0,0.00013972,2]
[384310666,1757332245252,-480.0,0.00013972,2]
[384310668,1757332245262,-426.77703593,0.00013972,2]
[384310670,1757332245271,-480.0,0.00013972,2]
[384310672,1757332245281,-480.0,0.00013972,2]
[384310674,1757332245293,-480.0,0.00013972,2]
[384310676,1757332245303,-480.0,0.00013972,2]
[384310678,1757332245312,-480.0,0.00013972,2]
[384310680,1757332245322,-480.0,0.00013972,2]
[384310682,1757332245332,-480.0,0.00013972,2]
[384310684,1757332245342,-480.0,0.00013972,2]
[384310686,1757332245351,-480.0,0.00013972,2]
[384310688,1757332245361,-480.0,0.00013972,2]
[384310690,1757332245370,-480.0,0.00013972,2]
[384310692,1757332245380,-480.0,0.00013972,2]
[384310694,1757332245389,-480.0,0.00013972,2]
[384310696,1757332245399,-480.0,0.00013972,2]
[384310698,1757332245409,-480.0,0.00013972,2]
[384310700,1757332245418,-209.67578915,0.00013972,2]
[384310702,1757332245427,-480.0,0.00013972,2]
[384310704,1757332245437,-582.95,0.00013972,2]
[384310706,1757332245446,-480.0,0.00013972,2]
[384310708,1757332245455,-480.0,0.00013972,2]
[384310710,1757332245464,-480.0,0.00013972,2]
[384310712,1757332245473,-480.0,0.00013972,2]
[384310714,1757332245483,-2018.68,0.00013972,2]
[384310716,1757332245493,-480.0,0.00013972,2]
[384310718,1757332245502,-480.0,0.00013972,2]
[384310720,1757332245512,-480.0,0.00013972,2]
[384310722,1757332245521,-480.0,0.00013972,2]
[384310724,1757332245531,-480.0,0.00013972,2]
[384310725,1757332245540,-508.64,0.00013972,2]
[384310727,1757332245550,-480.0,0.00013972,2]
[384310729,1757332245559,-915.55,0.00013972,2]
[384310731,1757332245569,-480.0,0.00013972,2]
[384310733,1757332245578,-480.0,0.00013972,2]
[384310735,1757332245588,-480.0,0.00013972,2]
[384310738,1757332245598,-480.0,0.00013972,2]
[384310740,1757332245609,-480.0,0.00013972,2]
[384310742,1757332245618,-625.7867151,0.00013972,2]
[384310744,1757332245627,-480.0,0.00013972,2]
[384310746,1757332245637,-480.0,0.00013972,2]
[384310748,1757332245647,-1080.19,0.00013972,2]
[384310750,1757332245656,-480.0,0.00013972,2]
[384310752,1757332245666,-387.55214545,0.00013972,2]
[384310754,1757332245675,-480.0,0.00013972,2]
[384310755,1757332245685,-501.54856755,0.00013973,2]
[384310758,1757332245695,-500.0,0.00013973,2]
[384310760,1757332245705,-500.0,0.00013973,2]
[384310762,1757332245715,-373.49826182,0.00013973,2]
[384310764,1757332245724,-500.0,0.00013973,2]
[384310766,1757332245734,-501.23191424,0.00013973,2]
[384310768,1757332245744,-500.0,0.00013973,2]
[384310769,1757332245754,-500.0,0.00013973,2]
[384310772,1757332245764,-500.0,0.00013973,2]
[384310774,1757332245774,-501.41367027,0.00013973,2]
[384310776,1757332245783,-500.0,0.00013973,2]
[384310778,1757332245793,-500.84092081,0.00013973,2]
[384310780,1757332245803,-160.02831354,0.00013973,2]
[384310782,1757332245814,-500.8031173,0.00013973,2]
[384310784,1757332245825,-502.6831754,0.00013973,2]
[384310786,1757332245835,-500.0,0.00013973,2]
[384310787,1757332245845,-446.47956864,0.00013973,2]
[384310789,1757332245855,-500.0,0.00013973,2]
[384310791,1757332245864,-500.0,0.00013973,2]
[384310793,1757332245873,-500.0,0.00013973,2]
[384310795,1757332245883,-500.0,0.00013973,2]
[384310797,1757332245893,-162.45900971,0.00013973,2]
[384310799,1757332245902,-500.0,0.00013973,2]
[384310801,1757332245912,-500.0,0.00013973,2]
[384310803,1757332245922,-500.0,0.00013973,2]
[384310805,1757332245931,-500.68659067,0.00013973,2]
[384310807,1757332245941,-500.0,0.00013973,2]
[384310809,1757332245950,-500.53705453,0.00013973,2]
[384310811,1757332245960,-502.79872657,0.00013973,2]
[384310813,1757332245969,-500.52292029,0.00013973,2]
[384310815,1757332245979,-500.0,0.00013973,2]
[384310817,1757332245990,-500.0,0.00013973,2]
[384310819,1757332245999,-500.0,0.00013973,2]
[384310821,1757332246009,-500.0,0.00013973,2]
[384310823,1757332246019,-501.27744027,0.00013973,2]
[384310825,1757332246028,-500.0,0.00013973,2]
[384310827,1757332246038,-164.36922765,0.00013973,2]
[384310829,1757332246048,-500.52929922,0.00013973,2]
[384310831,1757332246057,-500.0,0.00013973,2]
[384310833,1757332246067,-500.0,0.00013973,2]
[384310835,1757332246076,-500.0,0.00013973,2]
[384310837,1757332246086,-500.0,0.00013973,2]
[384310839,1757332246096,-500.0,0.00013973,2]
[384310841,1757332246106,-370.50742776,0.00013973,2]
[384310843,1757332246116,-428.17695497,0.00013973,2]
[384310845,1757332246126,-500.0,0.00013973,2]
[384310847,1757332246135,-500.0,0.00013973,2]
[384310849,1757332246145,-500.0,0.00013973,2]
[384310851,1757332246156,-500.0,0.00013973,2]
[384310852,1757332246166,-500.0,0.00013973,2]
[384310853,1757332246175,-151.0,0.00013973,2]
[384310854,1757332246184,-204.982899,0.00013973,2]
[384310855,1757332246193,-420.0,0.00013993,2]
[384310856,1757332246202,-47300.31628061,0.00014,2]
[384310858,1757332246211,-151.0,0.00014,2]
[384310860,1757332246220,-151.0,0.00014,2]
[384310863,1757332246230,-151.0,0.00014,2]
[384310866,1757332246241,-439.236311,0.00014,2]
[384310869,1757332246251,-439.236311,0.00014,2]
[384310871,1757332246261,-439.236311,0.00014,2]
[384310873,1757332246270,-439.236311,0.00014,2]
[384310875,1757332246280,-574.196076,0.00014,2]
[384310877,1757332246290,-151.0,0.00014,2]
[384310879,1757332246299,-574.196076,0.00014,2]
[384310881,1757332246309,-574.196076,0.00014,2]
[384310883,1757332246318,-574.196076,0.00014,2]
[384310885,1757332246330,-157.0,0.00014162,2]
[384310888,1757332246341,-157.0,0.00014162,2]
[384310891,1757332246351,-500.0,0.00014162,2]
[384310894,1757332246361,-846.71598105,0.00014212,2]
[384310897,1757332246370,-530.71506861,0.00014212,2]
[384310899,1757332246380,-217.62647793,0.00014212,2]
[384310901,1757332246389,-151.0,0.00014212,2]
[384310903,1757332246398,-151.0,0.00014212,2]
[384310905,1757332246408,-151.0,0.00014212,2]
[384310908,1757332246418,-153.351688,0.00014212,2]
[384310910,1757332246428,-153.351688,0.00014212,2]
[384310911,1757332246437,-153.351688,0.00014212,2]
[384310914,1757332246448,-153.351688,0.00014212,2]
[384310916,1757332246458,-203.26219058,0.00014212,2]
[384310918,1757332246467,-233.03190505,0.00014212,2]
[384310920,1757332246476,-480.0,0.00014246,2]
[384310922,1757332246486,-205.01202403,0.00014246,2]
[384310927,1757332246524,-157.0,0.00014246,2]
[384310929,1757332246534,-232.76153109,0.00014246,2]
[384310931,1757332246543,-480.0,0.00014246,2]
[384310933,1757332246552,-424.58178966,0.00014246,2]
[384310935,1757332246561,-480.0,0.00014246,2]
[384310937,1757332246570,-480.0,0.00014246,2]
[384310939,1757332246580,-480.0,0.00014246,2]
[384310941,1757332246589,-480.0,0.00014246,2]
[384310943,1757332246599,-480.0,0.00014246,2]
[384310945,1757332246608,-480.0,0.00014246,2]
[384310947,1757332246617,-480.0,0.00014246,2]
[384310949,1757332246627,-480.0,0.00014246,2]
[384310951,1757332246636,-480.0,0.00014246,2]
[384310953,1757332246645,-480.0,0.00014246,2]
[384310955,1757332246656,-442.95,0.00014246,2]
[384310957,1757332246665,-480.0,0.00014246,2]
[384310959,1757332246675,-480.0,0.00014246,2]
[384310961,1757332246685,-480.0,0.00014246,2]
[384310963,1757332246694,-480.0,0.00014246,2]
[384310965,1757332246704,-480.0,0.00014246,2]
[384310967,1757332246713,-480.0,0.00014246,2]
[384310969,1757332246723,-480.0,0.00014246,2]
[384310971,1757332246732,-480.0,0.00014246,2]
[384310973,1757332246743,-480.0,0.00014246,2]
[384310975,1757332246752,-480.0,0.00014246,2]
[384310977,1757332246762,-480.0,0.00014246,2]
[384310979,1757332246771,-480.0,0.00014246,2]
[384310981,1757332246781,-480.0,0.00014246,2]
[384310984,1757332246791,-480.0,0.00014246,2]
[384310986,1757332246802,-535.73,0.00014246,2]
[384310988,1757332246817,-480.0,0.00014246,2]
[384310990,1757332246836,-480.0,0.00014246,2]
[384310992,1757332246853,-480.0,0.00014246,2]
[384310994,1757332246863,-480.0,0.00014246,2]
[384310995,1757332246873,-492.82414207,0.00014246,2]
[384310997,1757332246882,-480.0,0.00014246,2]
[384311000,1757332246892,-480.0,0.00014246,2]
[384311001,1757332246902,-480.0,0.00014246,2]
[384311004,1757332246911,-480.0,0.00014246,2]
[384311006,1757332246921,-480.0,0.00014246,2]
[384311007,1757332246932,-480.0,0.00014246,2]
[384311009,1757332246942,-480.0,0.00014246,2]
[384311012,1757332246952,-480.0,0.00014246,2]
[384311014,1757332246962,-480.0,0.00014246,2]
[384311016,1757332246972,-414.94447871,0.00014246,2]
[384311018,1757332246982,-480.0,0.00014246,2]
[384311020,1757332246992,-480.0,0.00014246,2]
[384311022,1757332247002,-480.0,0.00014246,2]
[384311024,1757332247012,-551.65826779,0.00014246,2]
[384311026,1757332247021,-480.0,0.00014246,2]
[384311028,1757332247031,-480.0,0.00014246,2]
[384311030,1757332247040,-489.38355964,0.00014246,2]
[384311031,1757332247050,-480.0,0.00014246,2]
[384311033,1757332247060,-480.0,0.00014246,2]
[384311035,1757332247069,-480.0,0.00014246,2]
[384311037,1757332247078,-480.0,0.00014246,2]
[384311039,1757332247087,-480.0,0.00014246,2]
[384311041,1757332247097,-480.0,0.00014246,2]
[384311043,1757332247107,-480.0,0.00014246,2]
[384311045,1757332247117,-157.77515956,0.00014246,2]
[384311047,1757332247126,-480.0,0.00014246,2]
[384311049,1757332247136,-480.0,0.00014246,2]
[384311051,1757332247146,-233.5914031,0.00014246,2]
[384311053,1757332247156,-480.0,0.00014246,2]
[384311055,1757332247166,-480.0,0.00014246,2]
[384311057,1757332247176,-213.83689512,0.00014246,2]
[384311059,1757332247185,-480.0,0.00014246,2]
[384311061,1757332247194,-480.0,0.00014246,2]
[384311062,1757332247204,-480.0,0.00014246,2]
[384311065,1757332247214,-480.0,0.00014246,2]
[384311066,1757332247224,-480.0,0.00014246,2]
[384311069,1757332247233,-480.0,0.00014246,2]
[384311071,1757332247243,-480.0,0.00014246,2]
[384311073,1757332247253,-480.0,0.00014246,2]
[384311075,1757332247262,-480.0,0.00014246,2]
[384311077,1757332247272,-480.0,0.00014246,2]
[384311079,1757332247281,-480.0,0.00014246,2]
[384311081,1757332247290,-480.0,0.00014246,2]
[384311082,1757332247299,-1161.48,0.00014246,2]
[384311085,1757332247309,-191.50287399,0.00014246,2]
[384311087,1757332247318,-480.0,0.00014246,2]
[384311089,1757332247328,-779.28,0.00014246,2]
[384311091,1757332247337,-480.0,0.00014246,2]
[384311092,1757332247348,-480.0,0.00014246,2]
[384311094,1757332247357,-728.77,0.00014246,2]
[384311097,1757332247367,-248.50951568,0.00014246,2]
[384311099,1757332247376,-480.0,0.00014246,2]
[384311101,1757332247386,-480.0,0.00014246,2]
[384311103,1757332247395,-480.0,0.00014246,2]
[384311105,1757332247404,-480.0,0.00014246,2]
[384311107,1757332247414,-480.0,0.00014246,2]
[384311109,1757332247425,-480.0,0.00014246,2]
[384311111,1757332247434,-480.0,0.00014246,2]
[384311113,1757332247444,-612.29,0.00014246,2]
[384311115,1757332247453,-480.0,0.00014246,2]
[384311117,1757332247462,-480.0,0.00014246,2]
[384311119,1757332247472,-480.0,0.00014246,2]
[384311121,1757332247481,-151.0,0.00014246,2]
[384311123,1757332247490,-592.32,0.00014246,2]
[384311125,1757332247500,-151.0,0.00014246,2]
[384311127,1757332247509,-480.0,0.00014246,2]
[384311129,1757332247519,-480.0,0.00014246,2]
[384311131,1757332247528,-151.0,0.00014246,2]
[384311133,1757332247538,-480.0,0.00014246,2]
[384311135,1757332247547,-480.0,0.00014246,2]
[384311137,1757332247556,-480.0,0.00014246,2]
[384311139,1757332247566,-2223.23,0.00014246,2]
[384311141,1757332247575,-439.236311,0.00014246,2]
[384311143,1757332247585,-439.236311,0.00014246,2]
[384311145,1757332247595,-439.236311,0.00014246,2]
[384311147,1757332247604,-480.0,0.00014246,2]
[384311149,1757332247613,-439.23631,0.00014246,2]
[384311151,1757332247623,-480.0,0.00014246,2]
[384311153,1757332247633,-480.0,0.00014246,2]
[384311155,1757332247642,-480.0,0.00014246,2]
[384311157,1757332247651,-480.0,0.00014246,2]
[384311159,1757332247660,-527.07,0.00014246,2]
[384311161,1757332247671,-480.0,0.00014246,2]
[384311163,1757332247680,-574.196076,0.00014246,2]
[384311165,1757332247690,-211.804704,0.00014246,2]
[384311167,1757332247699,-574.196076,0.00014246,2]
[384311169,1757332247709,-574.196076,0.00014246,2]
[384311171,1757332247718,-574.19608,0.00014246,2]
[384311173,1757332247727,-480.0,0.00014246,2]
[384311175,1757332247737,-480.0,0.00014246,2]
[384311177,1757332247746,-484.28687964,0.00014246,2]
[384311179,1757332247755,-480.0,0.00014246,2]
[384311181,1757332247765,-480.0,0.00014246,2]
[384311183,1757332247774,-480.0,0.00014246,2]
[384311185,1757332247784,-480.0,0.00014246,2]
[384311187,1757332247794,-480.0,0.00014246,2]
[384311189,1757332247803,-480.0,0.00014246,2]
[384311191,1757332247816,-498.82,0.00014246,2]
[384311193,1757332247825,-480.0,0.00014246,2]
[384311195,1757332247835,-480.0,0.00014246,2]
[384311197,1757332247845,-480.0,0.00014246,2]
[384311199,1757332247855,-480.0,0.00014246,2]
[384311201,1757332247864,-480.0,0.00014246,2]
[384311203,1757332247874,-480.0,0.00014246,2]
[384311205,1757332247883,-486.71944881,0.00014246,2]
[384311207,1757332247893,-480.0,0.00014246,2]
[384311209,1757332247902,-480.0,0.00014246,2]
[384311211,1757332247912,-480.0,0.00014246,2]
[384311213,1757332247921,-480.0,0.00014246,2]
[384311215,1757332247931,-322.66340397,0.00014246,2]
[384311217,1757332247940,-480.0,0.00014246,2]
[384311219,1757332247950,-480.0,0.00014246,2]
[384311220,1757332247959,-480.0,0.00014246,2]
[384311222,1757332247969,-480.0,0.00014246,2]
[384311224,1757332247978,-480.0,0.00014246,2]
[384311226,1757332247988,-546.24,0.00014246,2]
[384311228,1757332247997,-480.0,0.00014246,2]
[384311231,1757332248007,-552.96358122,0.00014246,2]
[384311232,1757332248016,-582.95,0.00014246,2]
[384311235,1757332248026,-480.0,0.00014246,2]
[384311237,1757332248037,-480.0,0.00014246,2]
[384311238,1757332248047,-480.0,0.00014246,2]
[384311241,1757332248056,-480.0,0.00014246,2]
[384311243,1757332248067,-2018.68,0.00014246,2]
[384311245,1757332248077,-480.0,0.00014246,2]
[384311247,1757332248087,-480.0,0.00014246,2]
[384311249,1757332248097,-480.0,0.00014246,2]
[384311251,1757332248107,-480.0,0.00014246,2]
[384311253,1757332248117,-480.0,0.00014246,2]
[384311255,1757332248127,-915.55,0.00014246,2]
[384311257,1757332248136,-480.0,0.00014246,2]
[384311259,1757332248145,-480.0,0.00014246,2]
[384311261,1757332248155,-480.0,0.00014246,2]
[384311263,1757332248165,-480.0,0.00014246,2]
[384311265,1757332248174,-480.0,0.00014246,2]
[384311267,1757332248184,-480.0,0.00014246,2]
[384311269,1757332248194,-480.0,0.00014246,2]
[384311271,1757332248203,-480.0,0.00014246,2]
[384311273,1757332248213,-500.0,0.00014436,2]
[384311275,1757332248222,-480.0,0.0001452,2]
[384311277,1757332248232,-501.95,0.0001452,2]
[384311279,1757332248241,-232.73001793,0.0001452,2]
[384311281,1757332248251,-447.42696513,0.0001452,2]
[384311283,1757332248260,-480.0,0.0001452,2]
[384311285,1757332248269,-480.0,0.0001452,2]
[384311287,1757332248279,-480.0,0.0001452,2]
[384311289,1757332248289,-480.0,0.0001452,2]
[384311291,1757332248298,-480.0,0.0001452,2]
[384311293,1757332248307,-480.0,0.0001452,2]
[384311295,1757332248318,-516.58,0.0001452,2]
[384311297,1757332248327,-543.81887571,0.0001452,2]
[384311299,1757332248337,-480.0,0.0001452,2]
[384311301,1757332248346,-480.0,0.0001452,2]
[384311303,1757332248356,-480.0,0.0001452,2]
[384311305,1757332248365,-480.0,0.0001452,2]
[384311307,1757332248375,-480.0,0.0001452,2]
[384311310,1757332248385,-183.12809273,0.0001452,2]
[384311312,1757332248394,-566.31249216,0.0001452,2]
[384311313,1757332248404,-444.81,0.0001452,2]
[384311316,1757332248414,-480.0,0.0001452,2]
[384311318,1757332248423,-488.02376899,0.0001452,2]
[384311320,1757332248433,-224.98120831,0.0001452,2]
[384311322,1757332248442,-480.0,0.0001452,2]
[384311324,1757332248452,-480.0,0.0001452,2]
[384311326,1757332248461,-480.0,0.0001452,2]
[384311328,1757332248471,-480.0,0.0001452,2]
[384311330,1757332248481,-480.0,0.0001452,2]
[384311332,1757332248490,-480.0,0.0001452,2]
[384311334,1757332248500,-497.25290357,0.0001452,2]
[384311336,1757332248510,-197.40176373,0.0001452,2]
[384311338,1757332248520,-480.0,0.0001452,2]
[384311340,1757332248529,-480.0,0.0001452,2]
[384311342,1757332248539,-480.0,0.0001452,2]
[384311344,1757332248548,-487.78527334,0.0001452,2]
[384311346,1757332248558,-488.71418942,0.0001452,2]
[384311347,1757332248567,-480.0,0.0001452,2]
[384311350,1757332248577,-480.0,0.0001452,2]
[384311352,1757332248587,-480.0,0.0001452,2]
[384311354,1757332248598,-480.0,0.0001452,2]
[384311356,1757332248607,-480.0,0.0001452,2]
[384311358,1757332248617,-480.0,0.0001452,2]
[384311360,1757332248627,-480.0,0.0001452,2]
[384311362,1757332248636,-480.0,0.0001452,2]
[384311364,1757332248646,-480.0,0.0001452,2]
[384311366,1757332248655,-480.0,0.0001452,2]
[384311368,1757332248664,-480.0,0.0001452,2]
[384311370,1757332248674,-480.0,0.0001452,2]
[384311372,1757332248684,-480.0,0.0001452,2]
[384311373,1757332248694,-480.0,0.0001452,2]
[384311376,1757332248705,-1161.48,0.0001452,2]
[384311378,1757332248715,-779.28,0.0001452,2]
[384311380,1757332248725,-480.0,0.0001452,2]
[384311382,1757332248734,-480.0,0.0001452,2]
[384311384,1757332248745,-728.77,0.0001452,2]
[384311386,1757332248754,-480.0,0.0001452,2]
[384311388,1757332248764,-480.0,0.0001452,2]
[384311390,1757332248773,-480.0,0.0001452,2]
[384311392,1757332248782,-480.0,0.0001452,2]
[384311394,1757332248792,-480.0,0.0001452,2]
[384311396,1757332248801,-612.29,0.0001452,2]
[384311398,1757332248813,-480.0,0.0001452,2]
[384311400,1757332248825,-480.0,0.0001452,2]
[384311401,1757332248834,-480.0,0.0001452,2]
[384311403,1757332248844,-592.32,0.0001452,2]
[384311405,1757332248854,-543.31,0.0001452,2]
[384311407,1757332248864,-480.0,0.0001452,2]
[384311409,1757332248874,-480.0,0.0001452,2]
[384311411,1757332248883,-2223.23,0.0001452,2]
[384311413,1757332248895,-480.0,0.0001452,2]
[384311415,1757332248905,-480.0,0.0001452,2]
[384311417,1757332248915,-329.44,0.0001452,2]
[384311419,1757332248925,-480.0,0.0001452,2]
[384311421,1757332248934,-480.0,0.0001452,2]
[384311423,1757332248944,-480.0,0.0001452,2]
[384311424,1757332248952,-608.88,0.0001452,2]
[384311425,1757332248963,-618.38543869,0.0001452,2]
[384311426,1757332248972,-151.0,0.0001452,2]
[384311427,1757332248983,-151.0,0.0001452,2]
[384311428,1757332248993,-562.44,0.0001452,2]
[384311429,1757332249003,-151.0,0.0001452,2]
[384311430,1757332249014,-480.0,0.0001452,2]
[384311431,1757332249024,-480.0,0.0001452,2]
[384311432,1757332249034,-153.351688,0.0001452,2]
[384311433,1757332249043,-153.351688,0.0001452,2]
[384311434,1757332249054,-480.0,0.0001452,2]
[384311435,1757332249063,-153.351688,0.0001452,2]
[384311436,1757332249073,-498.82,0.0001452,2]
[384311437,1757332249082,-153.351696,0.0001452,2]
[384311438,1757332249092,-480.0,0.0001452,2]
[384311439,1757332249101,-480.0,0.0001452,2]
[384311440,1757332249111,-480.0,0.0001452,2]
[384311441,1757332249121,-480.0,0.0001452,2]
[384311442,1757332249218,-480.0,0.0001452,2]
[384311443,1757332249240,-480.0,0.0001452,2]
[384311444,1757332249250,-480.0,0.0001452,2]
[384311445,1757332249259,-480.0,0.0001452,2]
[384311446,1757332249269,-480.0,0.0001452,2]
[384311447,1757332249278,-480.0,0.0001452,2]
[384311448,1757332249287,-480.0,0.0001452,2]
[384311449,1757332249296,-623.46,0.0001452,2]
[384311450,1757332249306,-480.0,0.0001452,2]
[384311451,1757332249315,-480.0,0.0001452,2]
[384311452,1757332249324,-582.95,0.0001452,2]
[384311453,1757332249334,-575.91,0.0001452,2]
[384311454,1757332249343,-341.64,0.0001452,2]
[384311455,1757332249352,-480.0,0.0001452,2]
[384311456,1757332249361,-2018.68,0.0001452,2]
[384311457,1757332249370,-480.0,0.0001452,2]
[384311458,1757332249379,-480.0,0.0001452,2]
[384311459,1757332249388,-480.0,0.0001452,2]
[384311460,1757332249397,-480.0,0.0001452,2]
[384311461,1757332249406,-480.0,0.0001452,2]
[384311462,1757332249415,-915.55,0.0001452,2]
[384311463,1757332249425,-480.0,0.0001452,2]
[384311464,1757332249434,-480.0,0.0001452,2]
[384311465,1757332249444,-480.0,0.0001452,2]
[384311466,1757332249453,-480.0,0.0001452,2]
[384311467,1757332249462,-318.13,0.0001452,2]
[384311468,1757332249472,-480.0,0.0001452,2]
[384311469,1757332249482,-1000.0,0.00014521,2]
[384311470,1757332249492,-500.0,0.00014521,2]
[384311471,1757332249502,-366.16120885,0.00014521,2]
[384311472,1757332249511,-1000.0,0.00014521,2]
[384311473,1757332249521,-500.67600698,0.00014521,2]
[384311474,1757332249530,-1000.0,0.00014521,2]
[384311476,1757332249540,-1680.0,0.0001463,2]
[384311478,1757332249549,-420.0,0.00014632,2]
[384311480,1757332249558,-1680.0,0.00014668,2]
[384311482,1757332249567,-500.0,0.0001471,2]
[384311483,1757332249577,-734.03473905,0.00014787,2]
[384311484,1757332249586,-500.0,0.00014794,2]
[384311485,1757332249595,-500.0,0.00014794,2]
[384311486,1757332249605,-480.0,0.00014794,2]
[384311487,1757332249614,-480.0,0.00014794,2]
[384311488,1757332249624,-480.0,0.00014794,2]
[384311489,1757332249634,-480.0,0.00014794,2]
[384311490,1757332249643,-540.01,0.00014794,2]
[384311491,1757332249652,-480.0,0.00014794,2]
[384311492,1757332249663,-162.33,0.00014794,2]
[384311493,1757332249673,-480.0,0.00014794,2]
[384311494,1757332249682,-480.0,0.00014794,2]
[384311495,1757332249691,-480.0,0.00014794,2]
[384311496,1757332249700,-480.0,0.00014794,2]
[384311497,1757332249710,-547.19,0.00014794,2]
[384311498,1757332249720,-480.0,0.00014794,2]
[384311499,1757332249729,-613.61496442,0.00014794,2]
[384311500,1757332249738,-480.0,0.00014794,2]
[384311501,1757332249748,-210.56,0.00014794,2]
[384311502,1757332249765,-567.03,0.00014794,2]
[384311503,1757332249780,-480.0,0.00014794,2]
[384311504,1757332249789,-480.0,0.00014794,2]
[384311505,1757332249799,-480.0,0.00014794,2]
[384311506,1757332249809,-1161.48,0.00014794,2]
[384311507,1757332249822,-779.28,0.00014794,2]
[384311508,1757332249831,-728.77,0.00014794,2]
[384311509,1757332249840,-480.0,0.00014794,2]
[384311510,1757332249850,-249.13078969,0.00014794,2]
[384311511,1757332249860,-519.99,0.00014794,2]
[384311512,1757332249869,-612.29,0.00014794,2]
[384311513,1757332249878,-480.0,0.00014794,2]
[384311514,1757332249889,-480.0,0.00014794,2]
[384311515,1757332249899,-592.32,0.00014794,2]
[384311516,1757332249909,-480.0,0.00014794,2]
[384311517,1757332249918,-2223.23,0.00014794,2]
[384311518,1757332249927,-480.0,0.00014794,2]
[384311519,1757332249937,-228.39,0.00014794,2]
[384311520,1757332249946,-480.0,0.00014794,2]
[384311521,1757332249956,-480.0,0.00014794,2]
[384311522,1757332249965,-480.0,0.00014794,2]
[384311523,1757332249975,-498.82,0.00014794,2]
[384311524,1757332249984,-480.0,0.00014794,2]
[384311525,1757332249994,-480.0,0.00014794,2]
[384311526,1757332250004,-480.0,0.00014794,2]
[384311527,1757332250013,-417.72814483,0.00014794,2]
[384311528,1757332250022,-480.0,0.00014794,2]
[384311529,1757332250032,-480.0,0.00014794,2]
[384311530,1757332250041,-480.0,0.00014794,2]
[384311531,1757332250050,-480.0,0.00014794,2]
[384311532,1757332250060,-517.52,0.00014794,2]
[384311533,1757332250070,-480.0,0.00014794,2]
[384311534,1757332250079,-480.0,0.00014794,2]
[384311535,1757332250089,-582.95,0.00014794,2]
[384311536,1757332250098,-480.0,0.00014794,2]
[384311537,1757332250107,-2018.68,0.00014794,2]
[384311538,1757332250117,-480.0,0.00014794,2]
[384311539,1757332250127,-480.0,0.00014794,2]
[384311540,1757332250136,-262.91609445,0.00014794,2]
[384311541,1757332250145,-480.0,0.00014794,2]
[384311542,1757332250155,-915.55,0.00014794,2]
[384311543,1757332250164,-480.0,0.00014794,2]
[384311544,1757332250173,-480.0,0.00014794,2]
[384311545,1757332250183,-480.0,0.00014794,2]